lending/lending_fUSD_20250121
["ID","MTS","AMOUNT","RATE_DAILY","PERIOD"]
[349794198,1737432653976,-500.0,0.00021369,2]
[349794199,1737432653986,-500.0,0.00021369,2]
[349794200,1737432653995,-500.0,0.00021369,2]
[349794201,1737432654005,-156.259577,0.00021369,2]
[349794202,1737432654014,-500.0,0.00021369,2]
[349794203,1737432654024,-500.0,0.00021369,2]
[349794204,1737432654033,-500.0,0.00021369,2]
[349794205,1737432654042,-808.01,0.00021369,2]
[349794206,1737432654051,-500.0,0.00021369,2]
[349794207,1737432654061,-500.0,0.00021369,2]
[349794208,1737432654070,-666.67,0.00021369,2]
[349794209,1737432654079,-500.0,0.00021369,2]
[349794210,1737432654088,-500.0,0.00021369,2]
[349794211,1737432654097,-500.0,0.00021369,2]
[349794212,1737432654106,-500.0,0.00021369,2]
[349794213,1737432654115,-500.0,0.00021369,2]
[349794214,1737432654124,-500.0,0.00021369,2]
[349794215,1737432654133,-392.18,0.00021369,2]
[349794216,1737432654142,-500.0,0.00021369,2]
[349794217,1737432654151,-500.0,0.00021369,2]
[349794218,1737432654160,-1046.1,0.00021369,2]
[349794219,1737432654169,-500.0,0.00021369,2]
[349794220,1737432654178,-500.0,0.00021369,2]
[349794221,1737432654189,-500.0,0.00021369,2]
[349794222,1737432654198,-500.0,0.00021369,2]
[349794223,1737432654207,-500.0,0.00021369,2]
[349794224,1737432654216,-500.0,0.00021369,2]
[349794225,1737432654225,-500.0,0.00021369,2]
[349794226,1737432654237,-500.0,0.00021369,2]
[349794227,1737432654246,-500.0,0.00021369,2]
[349794228,1737432654255,-500.0,0.00021369,2]
[349794229,1737432654264,-500.0,0.00021369,2]
[349794230,1737432654273,-500.0,0.00021369,2]
[349794231,1737432654283,-500.0,0.00021369,2]
[349794232,1737432654292,-500.0,0.00021369,2]
[349794233,1737432654301,-1411.35,0.00021369,2]
[349794234,1737432654310,-500.0,0.00021369,2]
[349794235,1737432654319,-500.0,0.00021369,2]
[349794236,1737432654329,-500.0,0.00021369,2]
[349794237,1737432654338,-2323.97,0.00021369,2]
[349794238,1737432654347,-698.93,0.00021369,2]
[349794239,1737432654357,-568.32,0.00021369,2]
[349794240,1737432654367,-500.0,0.00021369,2]
[349794241,1737432654377,-629.61,0.00021369,2]
[349794242,1737432654387,-1062.05,0.00021369,2]
[349794243,1737432654396,-500.0,0.00021369,2]
[349794244,1737432654405,-1089.28,0.00021369,2]
[349794245,1737432654414,-500.0,0.00021369,2]
[349794246,1737432654424,-500.0,0.00021369,2]
[349794247,1737432654435,-359.78158138,0.00021369,2]
[349794248,1737432654445,-150.64022147,0.00021369,2]
[349794249,1737432654454,-1264.66,0.00021369,2]
[349794250,1737432654463,-500.0,0.00021369,2]
[349794251,1737432654472,-508.18,0.00021369,2]
[349794252,1737432654482,-512.40440752,0.00021369,2]
[349794253,1737432654495,-508.11,0.00021369,2]
[349794254,1737432654504,-500.0,0.00021369,2]
[349794255,1737432654513,-500.0,0.00021369,2]
[349794256,1737432654522,-500.0,0.00021369,2]
[349794257,1737432654531,-500.0,0.00021369,2]
[349794258,1737432654540,-1648.26,0.00021369,2]
[349794259,1737432654549,-500.0,0.00021369,2]
[349794260,1737432654558,-624.75,0.00021369,2]
[349794261,1737432654568,-327.93062294,0.00021369,2]
[349794262,1737432654577,-740.04,0.00021369,2]
[349794263,1737432654587,-500.0,0.00021369,2]
[349794264,1737432654596,-993.89,0.00021369,2]
[349794265,1737432654606,-500.0,0.00021369,2]
[349794266,1737432654615,-560.18,0.00021369,2]
[349794267,1737432654625,-788.74,0.00021369,2]
[349794268,1737432654634,-759.61,0.00021369,2]
[349794269,1737432654643,-972.7,0.00021369,2]
[349794270,1737432654654,-1457.72,0.00021369,2]
[349794271,1737432654663,-500.0,0.00021369,2]
[349794272,1737432654673,-669.01,0.00021369,2]
[349794273,1737432654685,-2287.02,0.00021369,2]
[349794274,1737432654694,-607.03,0.00021369,2]
[349794275,1737432654704,-212.76368305,0.00021369,2]
[349794276,1737432654713,-519.11149753,0.00021369,2]
[349794277,1737432654722,-1081.63,0.00021369,2]
[349794278,1737432654731,-768.56,0.00021369,2]
[349794279,1737432654741,-646.66688309,0.00021369,2]
[349794280,1737432654754,-500.0,0.00021369,2]
[349794281,1737432654764,-1275.07,0.00021369,2]
[349794282,1737432654774,-1521.43,0.00021369,2]
[349794283,1737432654783,-215.11823575,0.00021369,2]
[349794284,1737432654793,-500.0,0.00021369,2]
[349794285,1737432654802,-887.73,0.00021369,2]
[349794286,1737432654812,-2034.25,0.00021369,2]
[349794287,1737432654822,-988.46,0.00021369,2]
[349794288,1737432654831,-500.0,0.00021369,2]
[349794289,1737432654841,-501.3,0.00021369,2]
[349794290,1737432654850,-573.48,0.00021369,2]
[349794291,1737432654860,-659.84,0.00021369,2]
[349794292,1737432654869,-500.0,0.00021369,2]
[349794293,1737432654878,-1005.69,0.00021369,2]
[349794294,1737432654888,-374.05592029,0.00021369,2]
[349794295,1737432654897,-1337.02,0.00021369,2]
[349794296,1737432654906,-500.0,0.00021369,2]
[349794297,1737432654915,-729.86,0.00021369,2]
[349794298,1737432654925,-500.0,0.00021369,2]
[349794299,1737432654936,-500.0,0.00021369,2]
[349794300,1737432654945,-747.75,0.00021369,2]
[349794301,1737432654954,-500.0,0.00021369,2]
[349794302,1737432654963,-500.0,0.00021369,2]
[349794303,1737432654974,-500.0,0.00021369,2]
[349794304,1737432654984,-161.07197527,0.00021369,2]
[349794305,1737432654993,-596.34,0.00021369,2]
[349794306,1737432655003,-500.0,0.00021369,2]
[349794307,1737432655012,-500.0,0.00021369,2]
[349794308,1737432655022,-500.0,0.00021369,2]
[349794309,1737432655032,-886.65,0.00021369,2]
[349794310,1737432655041,-500.0,0.00021369,2]
[349794311,1737432655051,-529.55,0.00021369,2]
[349794312,1737432655060,-500.0,0.00021369,2]
[349794313,1737432655069,-500.0,0.00021369,2]
[349794314,1737432655079,-500.0,0.00021369,2]
[349794315,1737432655089,-500.0,0.00021369,2]
[349794316,1737432655098,-500.0,0.00021369,2]
[349794317,1737432655107,-500.0,0.00021369,2]
[349794318,1737432655117,-500.0,0.00021369,2]
[349794319,1737432655126,-505.54654149,0.00021369,2]
[349794320,1737432655136,-1216.28,0.00021369,2]
[349794321,1737432655146,-500.0,0.00021369,2]
[349794322,1737432655155,-695.84,0.00021369,2]
[349794323,1737432655165,-558.73,0.00021369,2]
[349794324,1737432655174,-750.64,0.00021369,2]
[349794325,1737432655185,-500.0,0.00021369,2]
[349794326,1737432655194,-500.0,0.00021369,2]
[349794327,1737432655204,-1200.1,0.00021369,2]
[349794328,1737432655213,-500.0,0.00021369,2]
[349794329,1737432655223,-1307.11,0.00021369,2]
[349794330,1737432655232,-500.0,0.00021369,2]
[349794331,1737432655242,-1000.0,0.00021388,2]
[349794332,1737432655251,-457.56,0.00021389,2]
[349794333,1737432655261,-150.0,0.00021389,2]
[349794334,1737432655270,-1982.04,0.00021389,2]
[349794335,1737432655284,-437.71,0.00021389,2]
[349794336,1737432655294,-150.0,0.00021389,2]
[349794337,1737432655303,-437.71,0.00021389,2]
[349794338,1737432655313,-437.71,0.00021389,2]
[349794339,1737432655322,-152.83,0.00021389,2]
[349794340,1737432655331,-150.0,0.00021389,2]
[349794341,1737432655340,-150.0,0.00021389,2]
[349794342,1737432655350,-300.0,0.00021389,2]
[349794343,1737432655361,-772.46,0.00021393,2]
[349794344,1737432655370,-438.48,0.00021393,2]
[349794345,1737432655380,-438.48,0.00021393,2]
[349794346,1737432655389,-438.48,0.00021393,2]
[349794347,1737432655399,-438.48,0.00021393,2]
[349794348,1737432655408,-438.48,0.00021393,2]
[349794349,1737432655417,-736.6778059,0.0002156,2]
[349794350,1737432655426,-500.0,0.00021642,2]
[349794351,1737432655436,-500.0,0.00021642,2]
[349794352,1737432655446,-500.0,0.00021642,2]
[349794353,1737432655455,-675.95,0.00021642,2]
[349794354,1737432655465,-500.0,0.00021642,2]
[349794355,1737432655475,-500.0,0.00021642,2]
[349794356,1737432655485,-776.79,0.00021642,2]
[349794357,1737432655494,-701.33,0.00021642,2]
[349794358,1737432655503,-512.14,0.00021642,2]
[349794359,1737432655513,-500.0,0.00021642,2]
[349794360,1737432655522,-500.0,0.00021642,2]
[349794361,1737432655532,-500.0,0.00021642,2]
[349794362,1737432655541,-779.3,0.00021642,2]
[349794363,1737432655550,-894.95,0.00021642,2]
[349794364,1737432655560,-777.11,0.00021642,2]
[349794365,1737432655569,-500.0,0.00021642,2]
[349794366,1737432655579,-504.28,0.00021642,2]
[349794367,1737432655588,-824.87,0.00021642,2]
[349794368,1737432655598,-637.74,0.00021642,2]
[349794369,1737432655607,-500.0,0.00021643,2]
[349794370,1737432655616,-500.0,0.00021643,2]
[349794371,1737432655626,-540.16,0.00021643,2]
[349794372,1737432655635,-500.0,0.00021643,2]
[349794373,1737432655644,-500.0,0.00021643,2]
[349794374,1737432655654,-500.0,0.00021643,2]
[349794375,1737432655663,-500.0,0.00021643,2]
[349794376,1737432655672,-500.0,0.00021643,2]
[349794377,1737432655682,-595.05,0.00021643,2]
[349794378,1737432655691,-213.125266,0.00021643,2]
[349794379,1737432655701,-500.0,0.00021643,2]
[349794380,1737432655710,-580.87,0.00021643,2]
[349794381,1737432655720,-500.0,0.00021643,2]
[349794382,1737432655730,-500.0,0.00021643,2]
[349794383,1737432655739,-500.0,0.00021643,2]
[349794384,1737432655750,-500.0,0.00021643,2]
[349794385,1737432655764,-500.0,0.00021643,2]
[349794386,1737432655773,-156.259577,0.00021643,2]
[349794387,1737432655783,-500.0,0.00021643,2]
[349794388,1737432655792,-500.0,0.00021643,2]
[349794389,1737432655802,-500.0,0.00021643,2]
[349794390,1737432655811,-808.01,0.00021643,2]
[349794391,1737432655820,-517.21833028,0.00021643,2]
[349794392,1737432655831,-500.0,0.00021643,2]
[349794393,1737432655841,-666.67,0.00021643,2]
[349794394,1737432655852,-500.0,0.00021643,2]
[349794395,1737432655862,-519.79160225,0.00021643,2]
[349794396,1737432655871,-500.0,0.00021643,2]
[349794397,1737432655881,-500.0,0.00021643,2]
[349794398,1737432655891,-500.0,0.00021643,2]
[349794399,1737432655901,-392.18,0.00021643,2]
[349794400,1737432655910,-500.0,0.00021643,2]
[349794401,1737432655920,-500.0,0.00021643,2]
[349794402,1737432655930,-1046.1,0.00021643,2]
[349794403,1737432655941,-500.0,0.00021643,2]
[349794404,1737432655950,-500.0,0.00021643,2]
[349794405,1737432655960,-500.0,0.00021643,2]
[349794406,1737432655970,-500.0,0.00021643,2]
[349794407,1737432655980,-500.0,0.00021643,2]
[349794408,1737432655989,-500.0,0.00021643,2]
[349794409,1737432655999,-500.0,0.00021643,2]
[349794410,1737432656008,-500.0,0.00021643,2]
[349794411,1737432656017,-500.0,0.00021643,2]
[349794412,1737432656027,-500.0,0.00021643,2]
[349794413,1737432656037,-500.0,0.00021643,2]
[349794414,1737432656047,-500.0,0.00021643,2]
[349794415,1737432656056,-500.0,0.00021643,2]
[349794416,1737432656066,-500.0,0.00021643,2]
[349794417,1737432656076,-1411.35,0.00021643,2]
[349794418,1737432656088,-500.0,0.00021643,2]
[349794419,1737432656100,-500.0,0.00021643,2]
[349794420,1737432656110,-425.88040873,0.00021643,2]
[349794421,1737432656120,-2323.97,0.00021643,2]
[349794422,1737432656129,-698.93,0.00021643,2]
[349794423,1737432656139,-568.32,0.00021643,2]
[349794424,1737432656148,-500.0,0.00021643,2]
[349794425,1737432656157,-629.61,0.00021643,2]
[349794426,1737432656168,-1062.05,0.00021643,2]
[349794427,1737432656178,-500.0,0.00021643,2]
[349794428,1737432656190,-1089.28,0.00021643,2]
[349794429,1737432656199,-500.0,0.00021643,2]
[349794430,1737432656212,-500.0,0.00021643,2]
[349794431,1737432656221,-1264.66,0.00021643,2]
[349794432,1737432656232,-500.0,0.00021643,2]
[349794433,1737432656241,-508.18,0.00021643,2]
[349794434,1737432656251,-508.11,0.00021643,2]
[349794435,1737432656260,-500.0,0.00021643,2]
[349794436,1737432656270,-500.0,0.00021643,2]
[349794437,1737432656280,-500.0,0.00021643,2]
[349794438,1737432656290,-500.0,0.00021643,2]
[349794439,1737432656300,-1648.26,0.00021643,2]
[349794440,1737432656310,-500.0,0.00021643,2]
[349794441,1737432656319,-624.75,0.00021643,2]
[349794442,1737432656329,-740.04,0.00021643,2]
[349794443,1737432656338,-500.0,0.00021643,2]
[349794444,1737432656348,-993.89,0.00021643,2]
[349794445,1737432656358,-500.0,0.00021643,2]
[349794446,1737432656368,-560.18,0.00021643,2]
[349794447,1737432656377,-788.74,0.00021643,2]
[349794448,1737432656387,-759.61,0.00021643,2]
[349794449,1737432656397,-972.7,0.00021643,2]
[349794450,1737432656406,-1457.72,0.00021643,2]
[349794451,1737432656416,-496.73775216,0.00021643,2]
[349794452,1737432656425,-669.01,0.00021643,2]
[349794453,1737432656436,-2287.02,0.00021643,2]
[349794454,1737432656446,-607.03,0.00021643,2]
[349794455,1737432656456,-1081.63,0.00021643,2]
[349794456,1737432656466,-768.56,0.00021643,2]
[349794457,1737432656476,-500.0,0.00021643,2]
[349794458,1737432656486,-1275.07,0.00021643,2]
[349794459,1737432656496,-1521.43,0.00021643,2]
[349794460,1737432656506,-500.0,0.00021643,2]
[349794461,1737432656516,-887.73,0.00021643,2]
[349794462,1737432656526,-2034.25,0.00021643,2]
[349794463,1737432656536,-988.46,0.00021643,2]
[349794464,1737432656545,-501.3,0.00021643,2]
[349794465,1737432656556,-500.0,0.00021643,2]
[349794466,1737432656566,-573.48,0.00021643,2]
[349794467,1737432656577,-659.84,0.00021643,2]
[349794468,1737432656587,-500.0,0.00021643,2]
[349794469,1737432656597,-1005.69,0.00021643,2]
[349794470,1737432656607,-1337.02,0.00021643,2]
[349794471,1737432656617,-500.0,0.00021643,2]
[349794472,1737432656627,-729.86,0.00021643,2]
[349794473,1737432656637,-500.0,0.00021643,2]
[349794474,1737432656647,-500.0,0.00021643,2]
[349794475,1737432656656,-747.75,0.00021643,2]
[349794476,1737432656666,-500.0,0.00021643,2]
[349794477,1737432656676,-500.0,0.00021643,2]
[349794478,1737432656687,-500.0,0.00021643,2]
[349794479,1737432656697,-596.34,0.00021643,2]
[349794480,1737432656707,-500.0,0.00021643,2]
[349794481,1737432656718,-500.0,0.00021643,2]
[349794482,1737432656728,-500.0,0.00021643,2]
[349794483,1737432656737,-886.65,0.00021643,2]
[349794484,1737432656749,-500.0,0.00021643,2]
[349794485,1737432656759,-529.55,0.00021643,2]
[349794486,1737432656769,-500.0,0.00021643,2]
[349794487,1737432656779,-500.0,0.00021643,2]
[349794488,1737432656789,-500.0,0.00021643,2]
[349794489,1737432656799,-500.0,0.00021643,2]
[349794490,1737432656808,-500.0,0.00021643,2]
[349794491,1737432656818,-500.0,0.00021643,2]
[349794492,1737432656829,-1216.28,0.00021643,2]
[349794493,1737432656839,-500.0,0.00021643,2]
[349794494,1737432656849,-695.84,0.00021643,2]
[349794495,1737432656859,-558.73,0.00021643,2]
[349794496,1737432656868,-750.64,0.00021643,2]
[349794497,1737432656878,-500.0,0.00021643,2]
[349794498,1737432656888,-500.0,0.00021643,2]
[349794499,1737432656898,-1200.1,0.00021643,2]
[349794500,1737432656908,-500.0,0.00021643,2]
[349794501,1737432656919,-1307.11,0.00021643,2]
[349794502,1737432656929,-500.0,0.00021643,2]
[349794503,1737432656940,-698.69,0.0002169,30]
[349794504,1737432656950,-1000.0,0.000217,2]
[349794505,1737432656960,-150.0,0.00021718,2]
[349794506,1737432656970,-3902.0,0.00021718,2]
[349794507,1737432656979,-1180.691,0.00021718,2]
[349794508,1737432656989,-150.0,0.00021728,2]
[349794509,1737432656999,-150.0,0.00021774,2]
[349794510,1737432657009,-1000.0,0.000218,2]
[349794511,1737432657019,-150.0,0.00021802,2]
[349794512,1737432657030,-150.0,0.00021804,2]
[349794513,1737432657040,-150.0,0.00021812,2]
[349794514,1737432657049,-150.0,0.00021814,2]
[349794515,1737432657059,-500.0,0.00021824,2]
[349794516,1737432657068,-1000.0,0.00021824,2]
[349794517,1737432657078,-150.0,0.00021871,2]
[349794518,1737432657087,-150.0,0.0002189,2]
[349794519,1737432657097,-500.0,0.0002189,2]
[349794520,1737432657292,-1033.06,0.00021899,2]
[349794521,1737432657302,-233.39260167,0.000219,2]
[349794522,1737432657311,-1360.8027,0.000219,2]
[349794523,1737432657321,-500.0,0.000219,2]
[349794524,1737432657331,-1827.7576,0.000219,2]
[349794525,1737432657340,-36172.1816,0.000219,2]
[349794526,1737432657350,-5049.34272362,0.000219,2]
[349794527,1737432657359,-1596.0,0.000219,31]
[349794528,1737432657368,-1596.0,0.000219,31]
[349794529,1737432657379,-1596.0,0.000219,31]
[349794530,1737432657388,-1596.0,0.000219,31]
[349794531,1737432657398,-1596.0,0.000219,31]
[349794532,1737432657407,-1596.0,0.000219,31]
[349794533,1737432657416,-1596.0,0.000219,31]
[349794534,1737432657426,-1596.0,0.000219,31]
[349794535,1737432657437,-1596.0,0.000219,31]
[349794536,1737432657446,-1596.0,0.000219,31]
[349794537,1737432657456,-1596.0,0.000219,31]
[349794538,1737432657465,-1596.0,0.000219,31]
[349794539,1737432657475,-1596.0,0.000219,31]
[349794540,1737432657484,-1596.0,0.000219,31]
[349794541,1737432657494,-1596.0,0.000219,31]
[349794542,1737432657503,-1596.0,0.000219,31]
[349794543,1737432657513,-526.64962796,0.000219,2]
[349794544,1737432657523,-162.67637772,0.000219,2]
[349794545,1737432657532,-1000.0,0.000219,2]
[349794546,1737432657541,-1598.89073774,0.000219,2]
[349794547,1737432657551,-1567.0,0.000219,2]
[349794548,1737432657560,-500.0,0.00021916,2]
[349794549,1737432657569,-500.0,0.00021916,2]
[349794550,1737432657578,-500.0,0.00021916,2]
[349794551,1737432657588,-675.95,0.00021916,2]
[349794552,1737432657597,-500.0,0.00021916,2]
[349794553,1737432657607,-500.0,0.00021916,2]
[349794554,1737432657617,-776.79,0.00021916,2]
[349794555,1737432657626,-701.33,0.00021916,2]
[349794556,1737432657635,-512.14,0.00021916,2]
[349794557,1737432657645,-500.0,0.00021916,2]
[349794558,1737432657654,-500.0,0.00021916,2]
[349794559,1737432657663,-500.0,0.00021916,2]
[349794560,1737432657673,-779.3,0.00021916,2]
[349794561,1737432657682,-894.95,0.00021916,2]
[349794562,1737432657692,-777.11,0.00021916,2]
[349794563,1737432657701,-500.0,0.00021916,2]
[349794564,1737432657711,-824.87,0.00021916,2]
[349794565,1737432657720,-637.74,0.00021916,2]
[349794566,1737432657729,-500.0,0.00021917,2]
[349794567,1737432657738,-500.0,0.00021917,2]
[349794568,1737432657749,-540.16,0.00021917,2]
[349794569,1737432657761,-500.0,0.00021917,2]
[349794570,1737432657771,-500.0,0.00021917,2]
[349794571,1737432657780,-500.0,0.00021917,2]
[349794572,1737432657790,-294.52914842,0.00021917,2]
[349794573,1737432657801,-500.0,0.00021917,2]
[349794574,1737432657810,-595.05,0.00021917,2]
[349794575,1737432657819,-500.0,0.00021917,2]
[349794576,1737432657830,-500.0,0.00021917,2]
[349794577,1737432657839,-500.0,0.00021917,2]
[349794578,1737432657848,-500.0,0.00021917,2]
[349794579,1737432657857,-500.0,0.00021917,2]
[349794580,1737432657866,-500.0,0.00021917,2]
[349794581,1737432657874,-500.0,0.00021917,2]
[349794582,1737432657884,-500.0,0.00021917,2]
[349794583,1737432657893,-500.0,0.00021917,2]
[349794584,1737432657903,-500.0,0.00021917,2]
[349794585,1737432657912,-500.0,0.00021917,2]
[349794586,1737432657922,-580.87,0.00021917,2]
[349794587,1737432657931,-500.0,0.00021917,2]
[349794588,1737432657941,-157.93438,0.00021917,2]
[349794589,1737432657951,-500.0,0.00021917,2]
[349794590,1737432657959,-500.0,0.00021917,2]
[349794591,1737432657968,-500.0,0.00021917,2]
[349794592,1737432657978,-500.0,0.00021917,2]
[349794593,1737432657987,-156.259577,0.00021917,2]
[349794594,1737432657997,-500.0,0.00021917,2]
[349794595,1737432658007,-500.0,0.00021917,2]
[349794596,1737432658016,-454.42289923,0.00021917,2]
[349794597,1737432658025,-808.01,0.00021917,2]
[349794598,1737432658035,-666.67,0.00021917,2]
[349794599,1737432658044,-500.0,0.00021917,2]
[349794600,1737432658054,-500.0,0.00021917,2]
[349794601,1737432658063,-500.0,0.00021917,2]
[349794602,1737432658073,-500.0,0.00021917,2]
[349794603,1737432658082,-500.0,0.00021917,2]
[349794604,1737432658091,-392.18,0.00021917,2]
[349794605,1737432658101,-196.76483455,0.00021917,2]
[349794606,1737432658110,-500.0,0.00021917,2]
[349794607,1737432658119,-1046.1,0.00021917,2]
[349794608,1737432658129,-500.0,0.00021917,2]
[349794609,1737432658138,-500.0,0.00021917,2]
[349794610,1737432658149,-500.0,0.00021917,2]
[349794611,1737432658158,-500.0,0.00021917,2]
[349794612,1737432658167,-416.68967748,0.00021917,2]
[349794613,1737432658177,-500.0,0.00021917,2]
[349794614,1737432658187,-500.0,0.00021917,2]
[349794615,1737432658196,-506.06951669,0.00021917,2]
[349794616,1737432658206,-621.54448458,0.00021917,2]
[349794617,1737432658215,-500.0,0.00021917,2]
[349794618,1737432658224,-500.0,0.00021917,2]
[349794619,1737432658233,-500.0,0.00021917,2]
[349794620,1737432658242,-500.0,0.00021917,2]
[349794621,1737432658251,-500.0,0.00021917,2]
[349794622,1737432658261,-1411.35,0.00021917,2]
[349794623,1737432658270,-500.0,0.00021917,2]
[349794624,1737432658279,-500.0,0.00021917,2]
[349794625,1737432658289,-2323.97,0.00021917,2]
[349794626,1737432658299,-698.93,0.00021917,2]
[349794627,1737432658308,-568.32,0.00021917,2]
[349794628,1737432658317,-500.0,0.00021917,2]
[349794629,1737432658326,-629.61,0.00021917,2]
[349794630,1737432658335,-1062.05,0.00021917,2]
[349794631,1737432658344,-500.0,0.00021917,2]
[349794632,1737432658353,-1089.28,0.00021917,2]
[349794633,1737432658363,-500.0,0.00021917,2]
[349794634,1737432658373,-500.0,0.00021917,2]
[349794635,1737432658382,-1264.66,0.00021917,2]
[349794636,1737432658391,-500.0,0.00021917,2]
[349794637,1737432658400,-508.18,0.00021917,2]
[349794638,1737432658410,-508.11,0.00021917,2]
[349794639,1737432658419,-500.0,0.00021917,2]
[349794640,1737432658428,-500.0,0.00021917,2]
[349794641,1737432658439,-500.0,0.00021917,2]
[349794642,1737432658449,-500.0,0.00021917,2]
[349794643,1737432658458,-1648.26,0.00021917,2]
[349794644,1737432658467,-500.0,0.00021917,2]
[349794645,1737432658477,-624.75,0.00021917,2]
[349794646,1737432658486,-740.04,0.00021917,2]
[349794647,1737432658495,-557.76562551,0.00021917,2]
[349794648,1737432658504,-993.89,0.00021917,2]
[349794649,1737432658513,-500.0,0.00021917,2]
[349794650,1737432658523,-560.18,0.00021917,2]
[349794651,1737432658533,-788.74,0.00021917,2]
[349794652,1737432658542,-759.61,0.00021917,2]
[349794653,1737432658552,-972.7,0.00021917,2]
[349794654,1737432658561,-1457.72,0.00021917,2]
[349794655,1737432658571,-669.01,0.00021917,2]
[349794656,1737432658581,-2287.02,0.00021917,2]
[349794657,1737432658590,-607.03,0.00021917,2]
[349794658,1737432658600,-1081.63,0.00021917,2]
[349794659,1737432658609,-768.56,0.00021917,2]
[349794660,1737432658619,-500.0,0.00021917,2]
[349794661,1737432658628,-1275.07,0.00021917,2]
[349794662,1737432658638,-1521.43,0.00021917,2]
[349794663,1737432658647,-500.0,0.00021917,2]
[349794664,1737432658656,-887.73,0.00021917,2]
[349794665,1737432658666,-2034.25,0.00021917,2]
[349794666,1737432658675,-500.0,0.00021917,2]
[349794667,1737432658685,-500.0,0.00021917,2]
[349794668,1737432658694,-500.0,0.00021917,2]
[349794669,1737432658704,-500.0,0.00021917,2]
[349794670,1737432658714,-500.0,0.00021917,2]
[349794671,1737432658723,-500.0,0.00021917,2]
[349794672,1737432658733,-500.0,0.00021917,2]
[349794673,1737432658742,-500.0,0.00021917,2]
[349794674,1737432658756,-500.0,0.00021917,2]
[349794675,1737432658766,-500.0,0.00021917,2]
[349794676,1737432658776,-988.46,0.00021917,2]
[349794677,1737432658787,-501.3,0.00021917,2]
[349794678,1737432658796,-500.0,0.00021917,2]
[349794679,1737432658806,-573.48,0.00021917,2]
[349794680,1737432658815,-659.84,0.00021917,2]
[349794681,1737432658826,-569.97997013,0.00021917,2]
[349794682,1737432658835,-1005.69,0.00021917,2]
[349794683,1737432658844,-1337.02,0.00021917,2]
[349794684,1737432658854,-500.0,0.00021917,2]
[349794685,1737432658864,-729.86,0.00021917,2]
[349794686,1737432658874,-500.0,0.00021917,2]
[349794687,1737432658883,-500.0,0.00021917,2]
[349794688,1737432658893,-747.75,0.00021917,2]
[349794689,1737432658902,-500.0,0.00021917,2]
[349794690,1737432658911,-500.0,0.00021917,2]
[349794691,1737432658921,-500.0,0.00021917,2]
[349794692,1737432658930,-596.34,0.00021917,2]
[349794693,1737432658942,-500.0,0.00021917,2]
[349794694,1737432658951,-500.0,0.00021917,2]
[349794695,1737432658960,-528.70592296,0.00021917,2]
[349794696,1737432658969,-886.65,0.00021917,2]
[349794697,1737432658978,-500.0,0.00021917,2]